bitfinex-derivatives/quotes_ETHF0:USTF0_20260104
["timestamp","ask_amount","ask_price","bid_price","bid_amount"]
[1767527829121,0.00478186,3138.2,3137.7,12.859]
[1767527829322,0.00478186,3138.2,3137.7,13.01842]
[1767527829528,1.86e-06,3138.2,3137.8,0.15941]
[1767527831430,0.01226771,3138.6,3137.8,0.15941]
[1767527831633,0.62846617,3139.6,3137.8,0.15941]
[1767527832536,0.63249131,3139.6,3137.8,0.15941]
[1767527832736,0.00478186,3139.0,3137.8,0.15941]
[1767527833536,0.14160833,3139.0,3137.8,40.95941]
[1767527833937,6.14160833,3139.0,3137.8,40.95941]
[1767527834343,0.14160833,3139.0,3137.8,40.95941]
[1767527842741,0.14160833,3139.0,3137.9,0.15941]
[1767527843941,0.14160833,3139.0,3138.0,40.8]
[1767527844135,0.14160833,3139.0,3138.1,12.898]
[1767527845543,0.00478186,3139.0,3138.1,12.898]
[1767527863970,0.00478186,3139.0,3138.2,0.15939]
[1767527864764,0.00478186,3139.0,3138.3,0.15939]
[1767527865069,0.00478186,3139.0,3138.4,12.982]
[1767527867671,0.00478186,3139.0,3138.4,13.14138]
[1767527884596,0.00402514,3139.6,3138.5,0.15938]
[1767527884792,0.00402514,3139.6,3138.7,0.15937]
[1767527884991,0.00402514,3139.6,3138.8,13.22336]
[1767527885791,0.00042889,3139.6,3138.8,13.22336]
[1767527885998,0.00042889,3139.6,3138.9,0.00478186]
[1767527887301,0.00042889,3139.6,3138.9,0.16414186]
[1767527892687,0.00042889,3139.6,3138.9,0.29929025]
[1767527895799,0.1321411,3140.3,3138.9,0.29929025]
[1767527896990,0.13490557,3140.3,3138.9,0.29929025]
[1767527899404,0.13490557,3140.3,3138.9,0.16414186]
[1767527914210,0.00276447,3140.3,3138.9,0.14745861]
[1767527914415,0.00029501,3140.3,3139.3,0.15934]
[1767527914914,0.00029501,3140.3,3139.3,40.95934]
[1767527915610,0.00029501,3140.3,3139.3,40.96294965]
[1767527915921,0.13371797,3140.3,3139.3,0.16294965]
[1767527916110,0.13371797,3140.3,3139.3,0.00360965]
[1767527916711,0.00029501,3140.3,3139.3,0.00360965]
[1767527924725,0.13342296,3140.2,3139.3,0.00360965]
[1767527934839,0.13342296,3140.1,3139.3,0.00360965]
[1767527944944,6.13342296,3140.1,3139.3,0.00360965]
[1767527949361,6.524,3140.0,3139.3,0.00360965]
[1767527952453,6.6560314,3140.0,3139.3,0.00360965]
[1767527952751,0.1320314,3139.9,3138.9,0.00478186]
[1767527953652,0.1320314,3139.9,3138.9,0.00821198]
[1767527965753,6.56,3139.8,3138.9,0.00821198]
[1767527970966,6.69358717,3139.8,3138.9,0.00821198]
[1767527971172,0.13358717,3139.7,3138.9,0.00821198]
[1767527975866,0.00029501,3140.3,3139.1,0.13116714]
[1767527976367,0.14277515,3141.2,3139.2,13.209]
[1767527976567,0.14277515,3141.1,3139.4,0.29049714]
[1767527977158,0.14277515,3141.1,3139.5,40.8]
[1767527977356,0.1457159,3141.1,3139.5,40.8]
[1767527980359,0.1457159,3141.1,3139.6,13.221]
[1767527982559,0.1457159,3141.1,3139.7,40.8]
[1767527983773,0.1457159,3141.1,3139.4,13.38833]
[1767527984276,0.1457159,3141.1,3139.4,54.18833]
[1767527986474,0.1457159,3141.1,3139.5,0.15933]
[1767527991270,0.1457159,3141.1,3139.6,0.15932]
[1767528000979,0.1457159,3141.1,3139.7,13.29]
[1767528001187,0.1457159,3141.1,3139.6,0.15932]
[1767528001989,0.1457159,3141.1,3139.0,0.15935]
[1767528001990,0.13480374,3141.0,3139.0,0.15935]
[1767528002184,0.13480374,3141.0,3139.1,13.094]
[1767528003182,0.29406374,3140.9,3139.1,13.292]
[1767528003390,0.13480374,3140.8,3139.0,0.15935]
[1767528003595,0.13480374,3140.8,3139.0,13.45335]
[1767528005397,0.13480374,3140.8,3139.0,0.15935]
[1767528005600,0.13480374,3140.8,3139.0,13.45735]
[1767528005893,0.13480374,3140.8,3139.0,0.15935]
[1767528006194,0.13480374,3140.7,3139.0,0.15935]
[1767528006394,0.13480374,3140.5,3138.9,0.00821198]
[1767528007205,0.13480374,3142.4,3139.0,3.28314854]
[1767528007498,0.13480374,3142.4,3140.5,0.09214854]
[1767528007692,0.13480374,3142.4,3140.6,6.043]
[1767528008189,0.13480374,3142.4,3141.2,0.00478186]
[1767528008389,0.1374415,3142.4,3141.2,0.00886182]
[1767528010797,0.13480374,3142.3,3139.7,0.25885202]
[1767528010991,0.13480374,3142.2,3139.8,3.746]
[1767528011297,0.13480374,3142.2,3139.7,0.15931]
[1767528011795,0.13480374,3142.2,3139.7,0.1629039]
[1767528012503,0.13480374,3142.2,3139.8,40.8]
[1767528017607,0.13480374,3142.2,3139.8,40.91402537]
[1767528018209,0.29399374,3142.2,3139.8,40.91402537]
[1767528018408,0.13480374,3142.1,3139.9,0.11844483]
[1767528019008,0.13480374,3142.1,3140.0,40.8]
[1767528019709,0.13480374,3142.1,3139.9,0.27775483]
[1767528020111,0.13480374,3142.1,3140.0,40.8]
[1767528025209,0.13480374,3142.1,3140.0,40.92314527]
[1767528025409,6.64480374,3142.1,3140.1,0.12314527]
[1767528025609,0.13480374,3141.9,3140.1,0.12314527]
[1767528026020,0.13480374,3141.9,3140.1,0.28244527]
[1767528026519,0.13480374,3141.9,3140.2,0.12283497]
[1767528028214,0.13480374,3141.9,3140.1,0.1593]
[1767528028414,0.13480374,3141.7,3139.8,13.329]
[1767528032026,0.13480374,3141.7,3139.8,13.45561055]
[1767528032227,0.13480374,3141.7,3139.8,13.61492055]
[1767528032527,0.13480374,3141.7,3139.9,0.12661055]
[1767528033226,0.13480374,3141.7,3140.0,0.1265054]
[1767528033419,6.519,3141.6,3140.0,0.1265054]
[1767528033625,6.519,3141.5,3140.0,0.1265054]
[1767528033818,0.13480374,3141.7,3140.0,0.1265054]
[1767528034019,6.52,3141.6,3140.0,0.2858054]
[1767528034222,0.13480374,3141.7,3140.0,0.2858054]
[1767528034417,6.521,3141.6,3140.0,0.2858054]
[1767528036536,6.66157762,3141.6,3140.0,0.2858054]
[1767528036737,0.14057762,3141.5,3140.0,0.1593]
[1767528036925,0.14057762,3141.5,3139.7,40.8035939]
[1767528037126,0.14057762,3141.4,3139.7,13.3595939]
[1767528041334,0.14057762,3141.4,3139.7,0.0035939]
[1767528041637,0.14057762,3141.3,3139.7,0.0035939]
[1767528048247,0.29981762,3141.3,3139.7,0.0035939]
[1767528048645,0.14057762,3141.1,3139.7,0.0035939]
[1767528049543,0.14057762,3141.0,3139.7,0.0035939]
[1767528050547,0.14057762,3140.6,3139.7,0.0035939]
[1767528050747,6.516,3140.5,3139.7,0.0035939]
[1767528056857,0.14057762,3140.4,3139.0,0.15935]
[1767528057960,0.14057762,3140.4,3139.0,0.16216789]
[1767528065265,6.516,3140.5,3139.0,0.16216789]
[1767528065867,6.516,3140.5,3139.0,0.30557417]
[1767528067170,6.516,3140.5,3139.1,0.15935]
[1767528071269,0.13086217,3140.4,3139.1,0.15935]
[1767528075280,6.516,3140.5,3139.1,0.15935]
[1767528076882,6.516,3140.5,3139.0,0.00281789]
[1767528077278,0.13086217,3140.4,3139.0,0.00281789]
[1767528079678,0.13086217,3140.1,3138.4,0.14340628]
[1767528080781,0.13440395,3140.1,3138.4,0.14650814]
[1767528081784,9.668,3140.0,3138.4,0.14650814]
[1767528086582,0.13440395,3140.1,3138.4,0.14650814]
[1767528086786,6.48,3139.9,3138.4,0.14650814]
[1767528086986,0.13440395,3140.1,3138.4,0.14650814]
[1767528087786,1.429,3140.0,3138.4,0.14650814]
[1767528090991,6.475,3140.0,3138.4,0.14650814]
[1767528104407,0.00354178,3140.1,3138.7,0.29909591]
[1767528104595,0.00354178,3140.1,3138.8,0.13972591]
[1767528104795,0.00354178,3140.1,3138.8,0.29908591]
[1767528105005,0.00354178,3140.1,3138.9,0.13972591]
[1767528105300,0.00354178,3140.1,3138.9,0.29908591]
[1767528105500,0.00354178,3140.1,3139.0,0.13972591]
[1767528107003,0.00354178,3140.1,3139.1,0.13972591]
[1767528107502,0.00478186,3140.7,3139.3,0.29906591]
[1767528107806,0.00478186,3140.7,3139.5,0.13972591]
[1767528108006,0.00478186,3140.7,3139.6,0.13972591]
[1767528108512,0.00859748,3140.7,3139.6,0.13972591]
[1767528110404,0.00859748,3140.7,3139.9,0.13972591]
[1767528110605,0.00859748,3140.7,3139.9,0.29903591]
[1767528110906,3.32705884,3141.7,3140.0,0.13972591]
[1767528111906,3.32952394,3141.7,3140.0,0.13972591]
[1767528112092,3.32952394,3141.7,3140.5,0.00478186]
[1767528112599,0.13405884,3141.6,3140.5,0.00478186]
[1767528112807,6.13405884,3141.6,3140.5,0.00478186]
[1767528113007,0.13405884,3141.5,3139.9,0.15931]
[1767528113213,0.00478186,3141.4,3139.9,0.15931]
[1767528114910,0.00478186,3141.4,3140.3,0.00478186]
[1767528115900,0.1388407,3141.4,3140.3,0.00478186]
[1767528116097,0.13405884,3141.3,3139.6,0.13972591]
[1767528120028,0.13405884,3141.1,3139.4,0.15933]
[1767528120621,0.13832793,3141.0,3139.2,0.13972591]
[1767528127834,0.13832793,3141.0,3139.3,0.13534829]
[1767528128525,0.13832793,3141.0,3139.3,3.98838924]
[1767528128730,0.13832793,3141.0,3139.4,0.13534829]
[1767528129029,0.15925,3141.1,3139.4,0.13534829]
[1767528129428,0.15925,3141.1,3139.5,0.13534829]
[1767528130929,7.129,3141.3,3139.5,0.13534829]
[1767528131433,7.129,3141.3,3139.6,0.13534829]
[1767528131733,7.129,3141.3,3139.7,0.13534829]
[1767528134533,7.129,3141.3,3139.7,4.12373753]
[1767528134937,7.26732793,3141.3,3139.7,4.12373753]
[1767528136041,0.13832793,3141.2,3139.7,4.12373753]
[1767528137432,0.29756793,3141.2,3139.7,4.12373753]
[1767528137646,0.13832793,3141.1,3139.7,3.98838924]
[1767528138641,0.13832793,3141.1,3139.8,3.98838924]
[1767528140243,0.15924,3141.2,3139.8,3.98838924]
[1767528140442,0.15924,3141.2,3139.8,4.12373753]
[1767528140942,0.15924,3141.2,3139.9,0.13534829]
[1767528144340,0.15924,3141.2,3139.9,4.12373753]
[1767528148749,0.15924,3141.2,3140.0,0.13534829]
[1767528151845,0.15924,3141.2,3139.9,3.98838924]
[1767528155255,0.15924,3141.2,3140.0,3.98838924]
[1767528158145,0.2997091,3141.2,3140.0,3.98838924]
[1767528158653,0.2997091,3141.2,3139.9,3.98838924]
[1767528166256,0.1404691,3141.1,3139.9,3.98838924]
[1767528166461,0.1404691,3141.0,3139.9,1.60581269]
[1767528166661,0.15928,3140.5,3139.2,0.13784783]
[1767528166849,6.396,3140.4,3139.2,0.13784783]
[1767528177966,6.414,3140.3,3139.2,0.13784783]
[1767528184276,12.57329,3140.3,3138.5,0.1346025]
[1767528184572,6.57329,3140.3,3138.5,0.1346025]
[1767528186775,0.15929,3140.2,3138.5,0.1346025]
[1767528196983,0.15929,3140.2,3138.6,0.1346025]
[1767528197489,6.4,3140.1,3138.6,0.1346025]
[1767528198780,6.4,3140.1,3138.7,0.1346025]
[1767528201289,6.397,3140.3,3138.7,0.1346025]
[1767528204688,0.15927,3140.6,3138.7,0.1346025]
[1767528204887,6.395,3140.5,3138.8,0.1346025]
[1767528207294,6.393,3140.4,3138.9,0.1346025]
[1767528209188,6.393,3140.4,3139.0,0.1346025]
[1767528209988,0.15927,3140.6,3139.0,0.1346025]
[1767528210287,6.55027,3140.6,3139.1,0.13915556]
[1767528236115,0.00478186,3140.2,3139.1,0.13915556]
[1767528236320,6.466,3140.1,3139.5,0.00478186]
[1767528246421,5.94810897,3140.1,3139.5,0.00478186]
[1767528256226,5.43021759,3140.1,3139.5,0.00478186]
[1767528272040,5.43021759,3140.1,3139.1,5.71157967]
[1767528272240,5.43021759,3140.1,3139.1,5.85595414]
[1767528284154,5.43021759,3140.1,3139.1,0.14437447]
[1767528287250,0.00034543,3140.2,3139.1,0.14437447]
[1767528287450,0.00034543,3140.2,3139.1,5.85595414]
[1767528288157,0.00034543,3140.2,3139.1,0.14437447]
[1767528299455,6.00034543,3140.2,3139.0,5.71157967]
[1767528299648,6.00034543,3140.2,3138.7,0.14421567]
[1767528299850,0.00034543,3140.2,3138.7,0.14421567]
[1767528300559,6.00034543,3140.2,3138.7,0.14421567]
[1767528300760,6.15963543,3140.2,3138.7,0.14421567]
[1767528300963,0.5339,3140.1,3138.7,0.14421567]
[1767528302164,0.6932,3140.1,3138.7,0.14421567]
[1767528302365,6.0,3140.0,3138.3,0.13873383]
[1767528302866,6.1593,3140.0,3138.3,0.13873383]
[1767528303268,6.461,3139.9,3138.3,0.13873383]
[1767528304673,6.461,3139.9,3138.4,0.14183569]
[1767528309373,6.0,3139.8,3138.4,0.14183569]
[1767528313079,6.15931,3139.8,3138.4,0.14183569]
[1767528315072,0.5339,3139.7,3138.4,0.14183569]
[1767528317779,0.69322,3139.7,3138.4,0.14183569]
[1767528318180,6.69322,3139.7,3138.4,0.14183569]
[1767528334097,0.69322,3139.7,3138.4,0.14183569]
[1767528334291,0.15932,3139.7,3138.4,0.14183569]
[1767528335496,0.5339,3139.6,3138.4,0.14183569]
[1767528348698,0.15932,3139.7,3138.4,0.14183569]
[1767528348892,0.15934,3139.3,3138.4,0.00310186]
[1767528349098,0.16220596,3139.3,3138.4,0.00310186]
[1767528349905,0.534,3139.2,3138.4,0.00310186]
[1767528355410,0.15935,3139.1,3137.5,0.13096715]
[1767528355610,6.47,3139.0,3137.5,0.13096715]
[1767528356206,0.00478186,3138.6,3137.5,0.13372825]
[1767528359307,0.00478186,3138.6,3137.5,6.13372825]
[1767528359510,0.00478186,3138.6,3137.6,0.13096715]
[1767528363013,0.5342,3138.5,3137.6,0.13096715]
[1767528367415,0.5342,3138.5,3137.7,0.13392651]
[1767528367416,0.38871312,3138.5,3137.7,0.13392651]
[1767528367621,0.00478186,3138.6,3137.8,0.13392651]
[1767528373421,0.00478186,3138.6,3137.5,0.1621911]
[1767528373621,0.00478186,3138.6,3137.6,6.0]
[1767528374323,0.00478186,3138.6,3137.5,0.1621911]
[1767528375021,0.00478186,3138.6,3137.5,0.29611761]
[1767528378522,0.00478186,3138.6,3137.6,6.0]
[1767528382327,0.00478186,3138.6,3137.6,6.15942]
[1767528382518,0.00478186,3138.6,3137.6,6.29334651]
[1767528383530,0.00478186,3138.6,3137.6,0.29334651]
[1767528383936,0.00478186,3138.6,3137.7,6.0]
[1767528388853,0.00478186,3138.6,3137.6,0.29334651]
[1767528393451,0.00478186,3138.6,3137.6,6.29334651]
[1767528393748,0.00478186,3138.6,3137.7,0.13334661]
[1767528418987,10.98513902,3138.9,3137.7,0.29276661]
[1767528427091,0.00478186,3138.6,3137.7,0.15942]
[1767528444399,0.00478186,3138.6,3137.6,5.71157967]
[1767528444702,0.14793331,3138.6,3137.6,5.71157967]
[1767528445800,0.14793331,3138.6,3137.5,5.71434077]
[1767528446703,0.14793331,3138.6,3137.6,5.71157967]
[1767528448311,0.00478186,3138.6,3137.6,5.71157967]
[1767528453919,0.00478186,3138.6,3137.5,5.71434077]
[1767528457313,0.00478186,3138.6,3137.6,5.71157967]
[1767528458020,0.00478186,3138.6,3137.5,5.71434077]
[1767528470656,0.14647335,3138.6,3137.5,5.71434077]
[1767528470933,0.15939,3138.2,3137.1,7.43947338]
[1767528471135,0.15939,3138.2,3136.7,9.15627493]
[1767528471136,6.512,3138.1,3136.7,9.15627493]
[1767528471322,6.512,3138.1,3136.7,9.29795399]
[1767528472031,6.512,3138.1,3136.7,0.14467514]
[1767528480343,6.64484831,3138.1,3136.7,0.14467514]
[1767528480730,0.13284831,3138.0,3136.7,0.00299608]
[1767528481439,6.512,3138.1,3136.7,0.00299608]
[1767528481641,6.64484831,3138.1,3136.7,0.00299608]
[1767528486046,0.13284831,3138.0,3136.7,0.00299608]
[1767528487449,10.98437524,3138.0,3136.7,0.00299608]
[1767528488449,11.11722355,3138.0,3136.7,0.00299608]
[1767528490955,0.13284831,3137.9,3136.7,0.00299608]
[1767528492750,0.29225831,3137.9,3136.7,0.00299608]
[1767528492955,0.13284831,3137.8,3136.0,0.1401483]
[1767528493955,0.13284831,3137.8,3136.0,0.14324674]
[1767528495756,0.29226831,3137.6,3136.0,0.14324674]
[1767528495957,0.13284831,3137.5,3136.0,0.14324674]
[1767528496253,6.514,3137.4,3136.0,0.14324674]
[1767528496961,0.00478186,3137.0,3136.0,0.14324674]
[1767528497164,0.00870448,3137.0,3136.0,0.14324674]
[1767528499158,0.00870448,3137.0,3136.0,0.00309844]
[1767528507554,0.00870448,3137.0,3136.0,0.14324674]
[1767528511063,0.00870448,3137.0,3136.0,6.14324674]
[1767528511364,0.00870448,3137.0,3136.1,0.13502727]
[1767528511562,6.496,3137.5,3136.2,0.29451727]
[1767528511757,6.496,3137.5,3136.2,0.15949]
[1767528511962,6.496,3137.5,3136.3,0.13502727]
[1767528512359,6.496,3137.5,3136.4,0.13502727]
[1767528512562,6.49911681,3137.5,3136.4,0.13502727]
[1767528513364,0.00478186,3137.3,3136.4,0.13502727]
[1767528522371,0.00478186,3137.3,3136.5,6.13336256]
[1767528522562,0.00478186,3137.3,3136.5,0.13336256]
[1767528538797,0.00478186,3137.3,3136.1,0.13336256]
[1767528538992,0.00478186,3137.3,3136.3,0.13336256]
[1767528542899,6.00478186,3137.3,3136.0,0.00309844]
[1767528543097,0.00478186,3137.3,3136.0,0.00309844]
[1767528543900,0.00478186,3137.3,3136.0,0.14698942]
[1767528560798,6.00478186,3137.3,3136.0,0.14698942]
[1767528562400,0.15945,3137.2,3136.0,0.14698942]
[1767528563507,0.15945,3137.2,3136.0,0.00309844]
[1767528564709,0.3033152,3137.2,3136.0,0.00309844]
[1767528566906,0.15945,3137.1,3136.0,0.00309844]
[1767528567404,0.00478186,3137.3,3136.0,0.14698942]
[1767528591053,6.00478186,3137.3,3136.0,0.14698942]
[1767528591255,0.00478186,3137.3,3136.0,0.14698942]
[1767528591854,6.00478186,3137.3,3136.0,0.14698942]
[1767528604860,6.00478186,3137.3,3136.0,0.00309844]
[1767528606568,6.16422186,3137.3,3136.0,0.00309844]
[1767528609066,0.15945,3137.2,3136.0,0.00309844]
[1767528609269,0.1436664,3137.0,3136.0,0.00309844]
[1767528609457,6.459,3136.9,3136.0,0.00309844]
[1767528610369,6.61846,3136.9,3136.0,0.00309844]
[1767528628984,6.459,3136.9,3136.0,0.00309844]
[1767528629281,6.53,3136.8,3136.0,0.00309844]
[1767528630179,10.48675069,3137.0,3136.0,0.13434159]
[1767528630478,6.535,3136.9,3136.1,0.13681715]
[1767528633384,6.535,3136.9,3136.1,6.13681715]
[1767528642088,6.535,3136.9,3136.2,0.1421183]
[1767528643591,6.571,3137.0,3136.3,0.1421183]
[1767528646883,6.571,3137.0,3136.0,0.00309844]
[1767528647096,6.571,3137.0,3136.1,6.0]
[1767528650195,6.571,3137.0,3136.0,0.00309844]
[1767528661307,6.571,3137.0,3136.0,0.13459461]
[1767528668611,6.571,3137.0,3136.1,0.13149617]
[1767528670725,0.00478186,3137.3,3136.1,0.13149617]
[1767528682224,0.00478186,3137.3,3136.2,0.13149617]
[1767528682729,0.00478186,3137.3,3136.3,0.13149617]
[1767528683123,0.00478186,3137.3,3136.4,0.13149617]
[1767528688643,0.00478186,3137.3,3136.4,0.29097617]
[1767528688825,0.00478186,3137.3,3136.5,0.13149617]
[1767528692338,0.00311681,3137.5,3136.7,0.14335788]
[1767528695231,0.15939,3138.3,3136.7,0.14335788]
[1767528695631,0.15939,3138.3,3136.8,0.13273807]
[1767528696241,0.16185227,3138.3,3136.8,0.13273807]
[1767528696637,0.00246227,3138.3,3136.8,0.13273807]
[1767528701538,6.13709702,3138.3,3136.8,0.13273807]
[1767528701740,0.13463475,3138.2,3136.8,12.474]
[1767528701939,6.13463475,3138.2,3136.6,0.00478186]
[1767528702133,0.13463475,3138.1,3136.6,0.00478186]
[1767528702342,0.13463475,3138.0,3136.6,0.00478186]
[1767528703036,0.13463475,3137.8,3136.6,0.00478186]
[1767528703850,0.13463475,3137.6,3136.0,0.00309844]
[1767528706145,0.13463475,3137.5,3136.0,0.00309844]
[1767528713354,0.13463475,3137.5,3136.0,0.13583651]
[1767528713648,0.15942,3137.7,3136.0,0.13583651]
[1767528714854,0.29405475,3137.7,3136.0,0.13583651]
[1767528721659,0.29405475,3137.7,3136.1,0.14435273]
[1767528721844,0.29405475,3137.7,3136.3,0.14435273]
[1767528722047,0.1377092,3138.1,3136.3,0.14435273]
[1767528727665,6.6454,3138.2,3136.3,0.14435273]
[1767528731270,6.6454,3138.2,3136.3,0.30384273]
[1767528731574,6.6454,3138.2,3136.4,0.14435273]
[1767528731866,0.1594,3138.2,3136.6,0.14435273]
[1767528738577,0.1594,3138.2,3136.7,0.14435273]
[1767528747291,0.00246227,3138.3,3136.7,0.14435273]
[1767528751693,0.00246227,3138.3,3136.7,0.30382273]
[1767528752093,0.00246227,3138.3,3136.8,0.30145935]
[1767528752293,0.00246227,3138.3,3136.9,0.14199935]
[1767528755997,0.00246227,3138.3,3137.0,0.14469401]
[1767528756389,0.00246227,3138.3,3137.0,0.30414401]
[1767528756695,0.00246227,3138.3,3137.1,0.14469401]
[1767528758598,0.00246227,3138.3,3137.2,0.15944]
[1767528759299,0.00246227,3138.3,3137.2,0.30413401]
[1767528759907,0.00246227,3138.3,3137.3,0.14469401]
[1767528789721,6.00246227,3138.3,3137.1,5.72550813]
[1767528789920,0.00246227,3138.3,3137.1,5.72550813]
[1767528790525,0.00246227,3138.3,3136.9,0.14537644]
[1767528792023,0.00246227,3138.3,3136.9,0.30483644]
[1767528792216,0.00246227,3138.3,3137.0,0.14537644]
[1767528796816,0.00246227,3138.3,3137.1,0.14537644]
[1767528798025,0.00478186,3138.0,3137.1,0.14537644]
[1767528810545,0.00478186,3138.0,3137.1,0.30482644]
[1767528810932,0.00478186,3138.0,3137.2,0.13196876]
[1767528818051,0.00478186,3138.0,3137.2,0.29140876]
[1767528818255,0.00478186,3138.0,3137.4,0.14476293]
[1767528830056,0.00478186,3138.0,3137.3,0.15944]
[1767528832465,0.00478186,3138.0,3137.3,0.30420293]
[1767528838471,0.00478186,3138.0,3137.4,0.14476293]
[1767528846172,4.00274265,3140.5,3137.8,0.14428095]
[1767528846368,6.453,3141.7,3138.2,0.14428095]
[1767528846369,0.1429416,3140.3,3138.2,0.14428095]
[1767528846568,0.1429416,3140.1,3138.3,0.14428095]
[1767528847168,0.14542641,3140.1,3138.3,0.14678205]
[1767528847469,0.14542641,3140.1,3138.9,0.00478186]
[1767528851674,0.1429416,3140.0,3138.9,0.00478186]
[1767528852068,6.1429416,3139.9,3138.9,0.00478186]
[1767528852268,0.1429416,3139.9,3138.9,0.00478186]
[1767528853070,6.1429416,3139.8,3138.9,0.00478186]
[1767528853276,0.1429416,3139.8,3138.9,0.00478186]
[1767528854673,6.0,3139.7,3138.9,0.00478186]
[1767528854869,0.1593,3140.0,3138.9,0.00478186]
[1767528855065,6.0,3139.9,3138.9,0.00478186]
[1767528858180,0.14772346,3139.7,3138.3,0.0025011]
[1767528859083,6.14772346,3139.7,3138.3,0.0025011]
[1767528859383,0.1429416,3139.6,3138.3,0.0025011]
[1767528866284,0.00478186,3139.7,3138.3,0.0025011]
[1767528866485,6.00478186,3139.7,3138.3,0.0025011]
[1767528867476,0.00478186,3139.7,3138.3,0.14678205]
[1767528885791,0.16410186,3139.7,3138.3,0.14678205]
[1767528885999,0.30504753,3139.7,3138.3,0.14678205]
[1767528888500,0.16410186,3139.7,3138.3,0.14678205]
[1767528923847,0.15932,3139.6,3138.3,0.14678205]
[1767528926241,0.15934,3139.2,3138.3,0.0025011]
[1767528930944,6.15935,3139.1,3137.5,0.14003774]
[1767528931249,0.15935,3139.1,3137.5,0.14003774]
[1767528932055,0.15935,3139.1,3137.5,0.14360786]
[1767528935344,0.15935,3139.1,3137.6,0.13544706]
[1767528935553,0.16410186,3139.7,3137.7,0.13544706]
[1767528937843,0.16410186,3139.7,3137.7,0.29486706]
[1767528938056,0.16410186,3139.7,3137.8,0.13544706]
[1767528938355,0.16410186,3139.7,3137.9,0.13544706]
[1767528939657,0.16410186,3139.7,3138.0,0.13544706]
[1767528939848,0.00478186,3139.7,3138.3,0.13544706]
[1767528949353,0.00478186,3139.7,3138.3,0.29483706]
[1767528949557,0.00478186,3139.7,3138.4,0.13544706]
[1767529013206,0.15932,3139.6,3138.4,0.13544706]
[1767529013709,6.15933,3139.5,3138.1,5.72550813]
[1767529013911,0.15933,3139.5,3138.0,0.14008529]
[1767529021003,0.00478186,3139.7,3138.0,0.14008529]
[1767529021903,0.00478186,3139.7,3138.1,0.14021345]
[1767529022710,0.00478186,3139.7,3138.2,0.14021345]
[1767529028113,0.16410186,3139.7,3138.2,0.14021345]
[1767529035117,0.00478186,3139.7,3138.2,0.14021345]
[1767529040623,0.00478186,3139.7,3138.2,0.29960345]
[1767529040924,0.00478186,3139.7,3138.3,0.14021345]
[1767529043224,0.00478186,3139.7,3138.3,0.29960345]
[1767529043425,0.00478186,3139.7,3138.5,0.14021345]
[1767529048518,0.00478186,3139.7,3138.6,0.14021345]
[1767529074967,0.00052128,3139.7,3138.6,0.14021345]
[1767529082559,0.00052128,3139.7,3138.8,0.00478186]
[1767529082754,0.00052128,3139.7,3138.9,0.13791737]
[1767529084863,6.13,3139.9,3138.9,0.13791737]
[1767529109582,6.13,3139.9,3138.8,0.00478186]
[1767529111483,6.13,3139.9,3138.8,0.1412366]
[1767529120790,6.13,3139.9,3138.8,0.00478186]
[1767529122091,6.27126287,3139.9,3138.8,0.00478186]
[1767529123293,6.43057287,3139.9,3138.8,0.00478186]
[1767529124692,6.28931,3139.9,3138.8,0.00478186]
[1767529127790,6.13,3139.9,3138.8,0.14428227]
[1767529141503,6.26642235,3139.9,3138.8,0.00478186]
[1767529141710,0.13642235,3139.8,3138.8,0.00478186]
[1767529148708,6.13,3139.9,3138.8,0.00478186]
[1767529166627,0.13642235,3139.8,3138.3,5.72550813]
[1767529169645,0.13642235,3139.8,3138.1,5.72550813]
[1767529169646,0.29573235,3139.8,3138.1,5.72550813]
[1767529169941,0.13642235,3139.7,3138.1,5.72550813]
[1767529170142,0.00478186,3139.3,3138.1,5.72550813]
[1767529170336,0.00052182,3139.3,3138.6,0.00478186]
[1767529191854,0.00052182,3139.3,3138.6,0.13956174]
[1767529192064,0.15931,3139.8,3138.6,0.13956174]
[1767529200264,6.13,3139.9,3138.6,0.13956174]
[1767529208169,6.13,3139.9,3138.6,6.13956174]
[1767529208360,6.13,3139.9,3138.7,0.14523339]
[1767529210565,5.61206588,3139.9,3138.8,0.14523339]
[1767529210874,5.61206588,3139.9,3138.9,0.14523339]
[1767529211068,0.00248481,3140.1,3138.9,0.14523339]
[1767529211278,0.00248481,3140.1,3138.9,0.30459339]
[1767529211571,0.00248481,3140.1,3139.0,0.14523339]
[1767529214268,0.00248481,3140.1,3139.0,6.14523339]
[1767529214466,0.00248481,3140.1,3139.2,0.14523339]
[1767529218574,0.00248481,3140.1,3139.2,6.30457339]
[1767529218878,6.018,3141.2,3139.4,0.14523339]
[1767529219771,6.02024049,3141.2,3139.4,0.14523339]
[1767529220674,6.16096751,3141.2,3139.4,0.14523339]
[1767529226699,0.00224049,3141.2,3139.4,0.14523339]
[1767529226888,6.01724049,3141.2,3139.4,0.14523339]
[1767529227899,6.01724049,3141.2,3139.4,0.30456339]
[1767529228289,6.01724049,3141.2,3139.5,0.14523339]
[1767529231499,6.01724049,3141.2,3139.5,0.30456339]
[1767529231686,6.01724049,3141.2,3139.6,0.14015459]
[1767529232294,6.01724049,3141.2,3139.8,0.14015459]
[1767529232601,0.00224049,3141.2,3139.8,0.14354499]
[1767529232908,0.00224049,3141.2,3140.2,0.00478186]
[1767529233194,0.00224049,3141.2,3140.2,0.14493645]
[1767529242405,0.00224049,3141.2,3140.2,0.00478186]
[1767529243198,0.00224049,3141.2,3139.8,0.13560029]
[1767529243199,0.00478186,3141.0,3139.8,0.0033904]
[1767529244806,6.00478186,3141.0,3139.8,0.0033904]
[1767529247411,5.996,3140.9,3139.8,0.0033904]
[1767529262826,0.29134566,3140.8,3139.2,5.72550813]
[1767529263024,0.13208566,3140.7,3139.2,5.72550813]
[1767529263420,0.13208566,3140.7,3139.0,0.14400767]
[1767529263823,0.13208566,3140.7,3139.0,0.14633402]
[1767529270233,0.29135566,3140.7,3139.0,0.14633402]
[1767529271732,0.15927,3140.6,3139.0,0.14633402]
[1767529276549,0.15928,3140.4,3139.0,0.14633402]
[1767529278848,0.1334899,3140.4,3139.0,0.00232635]
[1767529279643,0.13209851,3140.8,3139.0,0.14633402]
[1767529279848,0.15929,3140.4,3139.0,0.14633402]
[1767529284353,0.15929,3140.3,3139.0,0.14633402]
[1767529285153,0.1593,3140.2,3139.0,0.14633402]
[1767529306370,5.961,3140.6,3139.0,0.14633402]
[1767529306572,6.11127,3140.7,3139.0,0.14633402]
[1767529307074,5.952,3140.7,3139.2,0.29085999]
[1767529307279,5.952,3140.7,3139.3,0.13151999]
[1767529308066,0.00478186,3141.0,3139.3,0.29084999]
[1767529308272,0.00478186,3141.0,3139.5,0.13151999]
[1767529308664,0.00478186,3141.0,3139.7,0.13151999]